[Event "Titled Tuesday Blitz February 07 Early 2023"]
[White "Semenenko, Dmytry"]
[Black "Weetik, Vjacheslav"]
[WhiteFideId "14118645"]
[BlackFideId "4153472"]
[WhiteElo "2113"]
[BlackElo "2423"]
[Result "0-1"]
[Round "01"]
[TimeControl "180+2"]
[Date "2023.02.07"]
[WhiteClock "0:02:06"]
[BlackClock "0:00:04"]

1. Nf3 {[%clk 0:02:59]}  Nf6 {[%clk 0:02:59]} 2. c4 {[%clk 0:02:59]}  e6 {[%clk 0:02:47]} 3. d4 {[%clk 0:02:59]}  d5 {[%clk 0:02:44]} 4. Nc3 {[%clk 0:02:59]}  c6 {[%clk 0:02:41]} 5. e3 {[%clk 0:02:59]}  Nbd7 {[%clk 0:02:40]} 6. Bd3 {[%clk 0:02:59]}  dxc4 {[%clk 0:02:36]} 7. Bxc4 {[%clk 0:02:59]}  b5 {[%clk 0:02:37]} 8. Bd3 {[%clk 0:02:59]}  Bd6 {[%clk 0:02:36]} 9. O-O {[%clk 0:02:59]}  O-O {[%clk 0:02:32]} 10. e4 {[%clk 0:02:59]}  e5 {[%clk 0:02:31]} 11. Bg5 {[%clk 0:02:57]}  h6 {[%clk 0:02:27]} 12. Bh4 {[%clk 0:02:56]}  Bb7 {[%clk 0:01:54]} 13. Rc1 {[%clk 0:02:49]}  exd4 {[%clk 0:01:43]} 14. Nxd4 {[%clk 0:02:46]}  Nc5 {[%clk 0:01:23]} 15. Bb1 {[%clk 0:02:40]}  b4 {[%clk 0:01:11]} 16. Na4 {[%clk 0:02:31]}  Nxa4 {[%clk 0:00:34]} 17. Qxa4 {[%clk 0:02:31]}  Bxh2+ {[%clk 0:00:34]} 18. Kxh2 {[%clk 0:02:31]}  Qxd4 {[%clk 0:00:34]} 19. Rfd1 {[%clk 0:02:28]}  Qxb2 {[%clk 0:00:27]} 20. e5 {[%clk 0:02:20]}  Qxe5+ {[%clk 0:00:27]} 21. Bg3 {[%clk 0:02:18]}  Qh5+ {[%clk 0:00:26]} 22. Kg1 {[%clk 0:02:19]}  c5 {[%clk 0:00:21]} 23. Qb5 {[%clk 0:02:16]}  Be4 {[%clk 0:00:18]} 24. Rxc5 {[%clk 0:02:13]}  Qxd1+ {[%clk 0:00:18]} 25. Kh2 {[%clk 0:02:12]}  Bxb1 {[%clk 0:00:15]} 26. Qxb4 {[%clk 0:02:10]}  Rfe8 {[%clk 0:00:09]} 27. Qf4 {[%clk 0:02:10]}  Bg6 {[%clk 0:00:07]} 28. Bh4 {[%clk 0:02:10]}  Ng4+ {[%clk 0:00:07]} 29. Kg3 {[%clk 0:02:10]}  f5 {[%clk 0:00:05]} 30. Qc4+ {[%clk 0:02:08]}  Kh7 {[%clk 0:00:05]} 31. Qc3 {[%clk 0:02:08]}  Qd6+ {[%clk 0:00:04]} 32. f4 {[%clk 0:02:08]}  Re3+ {[%clk 0:00:04]} 33. Qxe3 {[%clk 0:02:07]}  Nxe3 {[%clk 0:00:04]} 34. Re5 {[%clk 0:02:07]}  Ng4 {[%clk 0:00:04]} 35. Re2 {[%clk 0:02:07]}  Qd3+ {[%clk 0:00:05]} 36. Re3 {[%clk 0:02:06]}  Qxe3# {[%clk 0:00:04]} 0-1


[Site "https://www.chess.com"]

[Event "Titled Tuesday Blitz February 07 Early 2023"]
[White "Fiorito, Joaquin"]
[Black "Foerster-Yialamas, Lucas"]
[WhiteFideId "180173"]
[BlackFideId "30901774"]
[WhiteElo "2405"]
[BlackElo "2151"]
[Result "1-0"]
[Round "01"]
[TimeControl "180+2"]
[Date "2023.02.07"]
[WhiteClock "0:00:11"]
[BlackClock "0:00:08"]

1. d4 {[%clk 0:03:00]}  Nf6 {[%clk 0:02:59]} 2. Nc3 {[%clk 0:03:00]}  d5 {[%clk 0:02:59]} 3. Bf4 {[%clk 0:03:00]}  c5 {[%clk 0:02:59]} 4. e4 {[%clk 0:02:59]}  cxd4 {[%clk 0:02:50]} 5. Qxd4 {[%clk 0:02:59]}  Nc6 {[%clk 0:02:48]} 6. Bb5 {[%clk 0:02:59]}  dxe4 {[%clk 0:02:39]} 7. Qxd8+ {[%clk 0:02:48]}  Kxd8 {[%clk 0:02:40]} 8. O-O-O+ {[%clk 0:02:45]}  Ke8 {[%clk 0:02:39]} 9. Nge2 {[%clk 0:02:26]}  e6 {[%clk 0:02:33]} 10. Ng3 {[%clk 0:02:19]}  Bd7 {[%clk 0:02:27]} 11. Ngxe4 {[%clk 0:02:18]}  a6 {[%clk 0:02:27]} 12. Be2 {[%clk 0:02:12]}  Bb4 {[%clk 0:02:21]} 13. Bd6 {[%clk 0:02:08]}  Bxc3 {[%clk 0:02:13]} 14. Nxc3 {[%clk 0:02:09]}  b5 {[%clk 0:02:06]} 15. Bf3 {[%clk 0:02:08]}  Rc8 {[%clk 0:02:06]} 16. Rhe1 {[%clk 0:02:04]}  Nd8 {[%clk 0:02:03]} 17. a4 {[%clk 0:01:33]}  bxa4 {[%clk 0:02:00]} 18. Rd4 {[%clk 0:01:32]}  Bc6 {[%clk 0:01:58]} 19. Bxc6+ {[%clk 0:01:24]}  Rxc6 {[%clk 0:01:59]} 20. Red1 {[%clk 0:01:21]}  Nb7 {[%clk 0:01:57]} 21. Ba3 {[%clk 0:01:19]}  a5 {[%clk 0:01:47]} 22. Nxa4 {[%clk 0:01:12]}  Nd5 {[%clk 0:01:43]} 23. Kb1 {[%clk 0:01:02]}  Rc8 {[%clk 0:01:09]} 24. c4 {[%clk 0:00:56]}  Nf6 {[%clk 0:01:09]} 25. Nb6 {[%clk 0:00:46]}  Rb8 {[%clk 0:01:05]} 26. c5 {[%clk 0:00:46]}  Nd8 {[%clk 0:01:02]} 27. Rd6 {[%clk 0:00:34]}  Ne4 {[%clk 0:01:00]} 28. Rd7 {[%clk 0:00:30]}  Nxf2 {[%clk 0:01:00]} 29. R1d2 {[%clk 0:00:21]}  Ng4 {[%clk 0:00:58]} 30. Nc4 {[%clk 0:00:18]}  Nc6 {[%clk 0:00:48]} 31. Rc7 {[%clk 0:00:17]}  Nce5 {[%clk 0:00:47]} 32. Nd6+ {[%clk 0:00:17]}  Kd8 {[%clk 0:00:42]} 33. Ra7 {[%clk 0:00:16]}  Nc6 {[%clk 0:00:43]} 34. Nxf7+ {[%clk 0:00:15]}  Ke8 {[%clk 0:00:41]} 35. Rc7 {[%clk 0:00:13]}  Rf8 {[%clk 0:00:39]} 36. Nd6+ {[%clk 0:00:12]}  Kd8 {[%clk 0:00:40]} 37. Rxc6 {[%clk 0:00:13]}  Rf2 {[%clk 0:00:37]} 38. Ne4+ {[%clk 0:00:12]}  Rxd2 {[%clk 0:00:32]} 39. Nxd2 {[%clk 0:00:11]}  Kd7 {[%clk 0:00:30]} 40. Rd6+ {[%clk 0:00:11]}  Kc7 {[%clk 0:00:28]} 41. Nc4 {[%clk 0:00:10]}  e5 {[%clk 0:00:26]} 42. Nxa5 {[%clk 0:00:09]}  e4 {[%clk 0:00:26]} 43. Re6 {[%clk 0:00:09]}  e3 {[%clk 0:00:22]} 44. h3 {[%clk 0:00:10]}  Nf6 {[%clk 0:00:20]} 45. Rxe3 {[%clk 0:00:10]}  Rd8 {[%clk 0:00:18]} 46. Nc4 {[%clk 0:00:08]}  Kc6 {[%clk 0:00:18]} 47. Ne5+ {[%clk 0:00:08]}  Kc7 {[%clk 0:00:16]} 48. Rd3 {[%clk 0:00:08]}  Rxd3 {[%clk 0:00:14]} 49. Nxd3 {[%clk 0:00:09]}  Nd5 {[%clk 0:00:14]} 50. b4 {[%clk 0:00:09]}  Kc6 {[%clk 0:00:12]} 51. Kb2 {[%clk 0:00:08]}  Kb5 {[%clk 0:00:13]} 52. Kb3 {[%clk 0:00:09]}  Ne3 {[%clk 0:00:11]} 53. g4 {[%clk 0:00:09]}  Nd5 {[%clk 0:00:11]} 54. Bb2 {[%clk 0:00:08]}  Ne3 {[%clk 0:00:12]} 55. Ne5 {[%clk 0:00:08]}  Nd5 {[%clk 0:00:09]} 56. Bc3 {[%clk 0:00:07]}  g6 {[%clk 0:00:09]} 57. Nc4 {[%clk 0:00:07]}  Nf4 {[%clk 0:00:09]} 58. Nd6+ {[%clk 0:00:07]}  Kc6 {[%clk 0:00:09]} 59. Kc4 {[%clk 0:00:08]}  Nxh3 {[%clk 0:00:09]} 60. b5+ {[%clk 0:00:08]}  Kd7 {[%clk 0:00:10]} 61. Bb4 {[%clk 0:00:08]}  Nf4 {[%clk 0:00:10]} 62. c6+ {[%clk 0:00:09]}  Kc7 {[%clk 0:00:09]} 63. Ne4 {[%clk 0:00:09]}  Ne6 {[%clk 0:00:09]} 64. Bd6+ {[%clk 0:00:08]}  Kc8 {[%clk 0:00:09]} 65. Kd5 {[%clk 0:00:08]}  Nd8 {[%clk 0:00:09]} 66. b6 {[%clk 0:00:08]}  h5 {[%clk 0:00:09]} 67. Nc5 {[%clk 0:00:08]}  hxg4 {[%clk 0:00:07]} 68. b7+ {[%clk 0:00:09]}  Nxb7 {[%clk 0:00:08]} 69. cxb7+ {[%clk 0:00:10]}  Kd8 {[%clk 0:00:08]} 70. b8=Q# {[%clk 0:00:11]} 1-0


[Site "https://www.chess.com"]

[Event "Titled Tuesday Blitz February 07 Early 2023"]
[White "Darini, Pouria"]
[Black "Zia, Tahsin Tajwar"]
[WhiteFideId "12502200"]
[BlackFideId "10211888"]
[WhiteElo "2401"]
[BlackElo "2315"]
[Result "1-0"]
[Round "01"]
[TimeControl "180+2"]
[Date "2023.02.07"]
[WhiteClock "0:00:35"]
[BlackClock "0:00:20"]

1. e4 {[%clk 0:02:58]}  c6 {[%clk 0:02:52]} 2. Nf3 {[%clk 0:02:52]}  d5 {[%clk 0:02:46]} 3. d3 {[%clk 0:02:52]}  dxe4 {[%clk 0:02:45]} 4. dxe4 {[%clk 0:02:53]}  Qxd1+ {[%clk 0:02:46]} 5. Kxd1 {[%clk 0:02:54]}  Nf6 {[%clk 0:02:45]} 6. Nfd2 {[%clk 0:02:53]}  h5 {[%clk 0:02:45]} 7. c3 {[%clk 0:02:44]}  g5 {[%clk 0:02:41]} 8. Kc2 {[%clk 0:02:36]}  g4 {[%clk 0:02:35]} 9. f4 {[%clk 0:02:22]}  gxf3 {[%clk 0:02:24]} 10. gxf3 {[%clk 0:02:22]}  Bh6 {[%clk 0:02:23]} 11. Na3 {[%clk 0:02:14]}  Be6 {[%clk 0:02:06]} 12. Nb3 {[%clk 0:02:10]}  Bxc1 {[%clk 0:01:56]} 13. Rxc1 {[%clk 0:02:11]}  Bxb3+ {[%clk 0:01:48]} 14. axb3 {[%clk 0:02:09]}  Nbd7 {[%clk 0:01:49]} 15. Nc4 {[%clk 0:02:04]}  b5 {[%clk 0:01:41]} 16. Na5 {[%clk 0:02:02]}  Rc8 {[%clk 0:01:41]} 17. Kd2 {[%clk 0:01:54]}  a6 {[%clk 0:01:39]} 18. Ke3 {[%clk 0:01:54]}  e5 {[%clk 0:01:35]} 19. Bh3 {[%clk 0:01:34]}  Ke7 {[%clk 0:01:34]} 20. Rhg1 {[%clk 0:01:31]}  c5 {[%clk 0:01:21]} 21. Rcd1 {[%clk 0:01:27]}  Rc7 {[%clk 0:01:08]} 22. Rg5 {[%clk 0:01:17]}  Rg8 {[%clk 0:00:44]} 23. Rxg8 {[%clk 0:01:12]}  Nxg8 {[%clk 0:00:44]} 24. Bxd7 {[%clk 0:01:11]}  Rxd7 {[%clk 0:00:43]} 25. Nc6+ {[%clk 0:01:11]}  Ke6 {[%clk 0:00:41]} 26. Nd8+ {[%clk 0:01:11]}  Ke7 {[%clk 0:00:38]} 27. Nc6+ {[%clk 0:01:01]}  Ke6 {[%clk 0:00:36]} 28. Rxd7 {[%clk 0:01:02]}  Kxd7 {[%clk 0:00:37]} 29. Nxe5+ {[%clk 0:01:02]}  Ke6 {[%clk 0:00:34]} 30. Nd3 {[%clk 0:01:01]}  Kd6 {[%clk 0:00:34]} 31. Kf4 {[%clk 0:00:42]}  f6 {[%clk 0:00:25]} 32. Kf5 {[%clk 0:00:41]}  a5 {[%clk 0:00:25]} 33. Kg6 {[%clk 0:00:34]}  c4 {[%clk 0:00:22]} 34. bxc4 {[%clk 0:00:34]}  bxc4 {[%clk 0:00:22]} 35. Nf4 {[%clk 0:00:35]}  h4 {[%clk 0:00:21]} 36. Kf7 {[%clk 0:00:31]}  Ne7 {[%clk 0:00:16]} 37. Kxf6 {[%clk 0:00:32]}  Nc6 {[%clk 0:00:17]} 38. Ng6 {[%clk 0:00:33]}  a4 {[%clk 0:00:16]} 39. e5+ {[%clk 0:00:34]}  Kd5 {[%clk 0:00:15]} 40. Nf4+ {[%clk 0:00:33]}  Kc5 {[%clk 0:00:15]} 41. e6 {[%clk 0:00:33]}  Kb5 {[%clk 0:00:16]} 42. e7 {[%clk 0:00:33]}  Nxe7 {[%clk 0:00:17]} 43. Kxe7 {[%clk 0:00:34]}  a3 {[%clk 0:00:18]} 44. bxa3 {[%clk 0:00:34]}  Ka4 {[%clk 0:00:19]} 45. Kd6 {[%clk 0:00:34]}  Kxa3 {[%clk 0:00:20]} 46. Kc5 {[%clk 0:00:35]}  Kb3 {[%clk 0:00:20]} 47. Kd4 {[%clk 0:00:36]}  h3 {[%clk 0:00:20]} 48. Nxh3 {[%clk 0:00:35]} 1-0


[Site "https://www.chess.com"]

[Event "Titled Tuesday Blitz February 07 Early 2023"]
[White "Chernobay, Artem"]
[Black "Fernandez Siles, Luis"]
[WhiteFideId "4167406"]
[BlackFideId "2209420"]
[WhiteElo "2484"]
[BlackElo "2218"]
[Result "1-0"]
[Round "01"]
[TimeControl "180+2"]
[Date "2023.02.07"]
[WhiteClock "0:00:21"]
[BlackClock "0:00:20"]

1. e4 {[%clk 0:02:57]}  c5 {[%clk 0:02:59]} 2. Nf3 {[%clk 0:02:56]}  Nc6 {[%clk 0:02:59]} 3. Bb5 {[%clk 0:02:54]}  g6 {[%clk 0:02:59]} 4. Bxc6 {[%clk 0:02:53]}  dxc6 {[%clk 0:03:00]} 5. d3 {[%clk 0:02:52]}  Bg7 {[%clk 0:02:59]} 6. h3 {[%clk 0:02:52]}  Nf6 {[%clk 0:02:59]} 7. Nc3 {[%clk 0:02:51]}  Nd7 {[%clk 0:02:50]} 8. Be3 {[%clk 0:02:47]}  e5 {[%clk 0:02:49]} 9. Qd2 {[%clk 0:02:47]}  h6 {[%clk 0:02:49]} 10. O-O {[%clk 0:02:46]}  b6 {[%clk 0:02:47]} 11. Nh2 {[%clk 0:02:43]}  Nf8 {[%clk 0:02:36]} 12. f4 {[%clk 0:02:42]}  exf4 {[%clk 0:02:35]} 13. Bxf4 {[%clk 0:02:42]}  Ne6 {[%clk 0:02:36]} 14. Bg3 {[%clk 0:02:34]}  O-O {[%clk 0:02:29]} 15. e5 {[%clk 0:02:01]}  Qg5 {[%clk 0:02:20]} 16. Qf2 {[%clk 0:01:33]}  Bxe5 {[%clk 0:02:11]} 17. Bxe5 {[%clk 0:01:34]}  Qxe5 {[%clk 0:02:11]} 18. Ng4 {[%clk 0:01:28]}  Qd4 {[%clk 0:02:06]} 19. Nxh6+ {[%clk 0:01:26]}  Kg7 {[%clk 0:02:06]} 20. Ng4 {[%clk 0:01:25]}  Qxf2+ {[%clk 0:01:56]} 21. Rxf2 {[%clk 0:01:26]}  Nd4 {[%clk 0:01:54]} 22. Ne5 {[%clk 0:01:17]}  f6 {[%clk 0:01:47]} 23. Nc4 {[%clk 0:01:14]}  Ba6 {[%clk 0:01:41]} 24. Ne4 {[%clk 0:01:07]}  Bxc4 {[%clk 0:01:37]} 25. dxc4 {[%clk 0:01:08]}  Rae8 {[%clk 0:01:35]} 26. Ng3 {[%clk 0:01:02]}  Re3 {[%clk 0:01:31]} 27. Kh2 {[%clk 0:01:00]}  Rfe8 {[%clk 0:01:25]} 28. c3 {[%clk 0:00:56]}  Ne6 {[%clk 0:01:14]} 29. Rd1 {[%clk 0:00:53]}  Ng5 {[%clk 0:00:59]} 30. Rd7+ {[%clk 0:00:46]}  R8e7 {[%clk 0:00:58]} 31. Rfd2 {[%clk 0:00:46]}  Kf7 {[%clk 0:00:54]} 32. h4 {[%clk 0:00:38]}  Rxg3 {[%clk 0:00:44]} 33. Kxg3 {[%clk 0:00:36]}  Ne4+ {[%clk 0:00:44]} 34. Kf4 {[%clk 0:00:36]}  Nxd2 {[%clk 0:00:44]} 35. Rxd2 {[%clk 0:00:36]}  Ke6 {[%clk 0:00:38]} 36. Re2+ {[%clk 0:00:35]}  Kf7 {[%clk 0:00:38]} 37. Rxe7+ {[%clk 0:00:35]}  Kxe7 {[%clk 0:00:38]} 38. g4 {[%clk 0:00:35]}  Kf7 {[%clk 0:00:33]} 39. h5 {[%clk 0:00:33]}  Kg7 {[%clk 0:00:31]} 40. a4 {[%clk 0:00:28]}  f5 {[%clk 0:00:29]} 41. gxf5 {[%clk 0:00:22]}  gxh5 {[%clk 0:00:29]} 42. Kg5 {[%clk 0:00:23]}  a5 {[%clk 0:00:22]} 43. Kxh5 {[%clk 0:00:22]}  Kf6 {[%clk 0:00:22]} 44. Kg4 {[%clk 0:00:23]}  Kf7 {[%clk 0:00:22]} 45. Kg5 {[%clk 0:00:22]}  Kg7 {[%clk 0:00:22]} 46. f6+ {[%clk 0:00:22]}  Kf7 {[%clk 0:00:22]} 47. Kf5 {[%clk 0:00:22]}  Kf8 {[%clk 0:00:23]} 48. Ke6 {[%clk 0:00:23]}  Ke8 {[%clk 0:00:23]} 49. f7+ {[%clk 0:00:20]}  Kf8 {[%clk 0:00:21]} 50. Kf6 {[%clk 0:00:20]}  b5 {[%clk 0:00:20]} 51. axb5 {[%clk 0:00:21]}  cxb5 {[%clk 0:00:20]} 52. cxb5 {[%clk 0:00:21]} 1-0


[Site "https://www.chess.com"]

[Event "Titled Tuesday Blitz February 07 Early 2023"]
[White "Rosenberg, Evan S"]
[Black "EREBUNI91"]
[WhiteFideId "2019299"]
[WhiteElo "1956"]
[BlackElo "2666"]
[Result "1-0"]
[Round "01"]
[TimeControl "180+2"]
[Date "2023.02.07"]
[WhiteClock "0:00:40"]
[BlackClock "0:00:10"]

1. d4 {[%clk 0:03:00]}  Nf6 {[%clk 0:00:32]} 2. Nf3 {[%clk 0:03:00]}  d5 {[%clk 0:00:32]} 3. c3 {[%clk 0:03:00]}  Bf5 {[%clk 0:00:33]} 4. Qb3 {[%clk 0:03:00]}  Qc8 {[%clk 0:00:32]} 5. c4 {[%clk 0:03:00]}  e6 {[%clk 0:00:32]} 6. cxd5 {[%clk 0:02:57]}  exd5 {[%clk 0:00:33]} 7. Nc3 {[%clk 0:02:58]}  c6 {[%clk 0:00:33]} 8. Bf4 {[%clk 0:02:58]}  Be7 {[%clk 0:00:33]} 9. Rc1 {[%clk 0:02:59]}  O-O {[%clk 0:00:29]} 10. h3 {[%clk 0:03:00]}  h6 {[%clk 0:00:29]} 11. e3 {[%clk 0:02:59]}  Nbd7 {[%clk 0:00:29]} 12. Be2 {[%clk 0:02:58]}  Nb6 {[%clk 0:00:26]} 13. O-O {[%clk 0:02:54]}  Ne4 {[%clk 0:00:26]} 14. Rfd1 {[%clk 0:02:43]}  Nxc3 {[%clk 0:00:26]} 15. Rxc3 {[%clk 0:02:42]}  Be4 {[%clk 0:00:22]} 16. a4 {[%clk 0:02:35]}  Nd7 {[%clk 0:00:19]} 17. a5 {[%clk 0:02:32]}  Re8 {[%clk 0:00:16]} 18. Rdc1 {[%clk 0:02:24]}  Nf8 {[%clk 0:00:17]} 19. a6 {[%clk 0:02:23]}  bxa6 {[%clk 0:00:18]} 20. Rxc6 {[%clk 0:02:23]}  Qd8 {[%clk 0:00:17]} 21. Rxa6 {[%clk 0:02:09]}  Ne6 {[%clk 0:00:17]} 22. Be5 {[%clk 0:02:06]}  Bf6 {[%clk 0:00:16]} 23. Bxf6 {[%clk 0:02:04]}  Qxf6 {[%clk 0:00:17]} 24. Ne5 {[%clk 0:01:45]}  Qg5 {[%clk 0:00:14]} 25. Bf3 {[%clk 0:01:38]}  Nxd4 {[%clk 0:00:14]} 26. exd4 {[%clk 0:01:16]}  Qxc1+ {[%clk 0:00:15]} 27. Kh2 {[%clk 0:01:16]}  Qf4+ {[%clk 0:00:15]} 28. g3 {[%clk 0:01:15]}  Qd2 {[%clk 0:00:15]} 29. Bxe4 {[%clk 0:01:12]}  Qxd4 {[%clk 0:00:10]} 30. Bxd5 {[%clk 0:00:58]}  Qxe5 {[%clk 0:00:10]} 31. Bxf7+ {[%clk 0:00:54]}  Kh8 {[%clk 0:00:10]} 32. Bxe8 {[%clk 0:00:54]}  Qxe8 {[%clk 0:00:10]} 33. Qc3 {[%clk 0:00:46]}  Qf8 {[%clk 0:00:10]} 34. Rxh6+ {[%clk 0:00:43]}  Kg8 {[%clk 0:00:09]} 35. Qc4+ {[%clk 0:00:40]}  Qf7 {[%clk 0:00:09]} 36. Rh8+ {[%clk 0:00:40]}  Kxh8 {[%clk 0:00:10]} 37. Qxf7 {[%clk 0:00:40]} 1-0


[Site "https://www.chess.com"]

[Event "Titled Tuesday Blitz February 07 Early 2023"]
[White "Mogirzan, Matei-Valeriu"]
[Black "Dong, Bao Nghia"]
[WhiteFideId "1257455"]
[BlackFideId "12400343"]
[WhiteElo "1813"]
[BlackElo "2332"]
[Result "1-0"]
[Round "01"]
[TimeControl "180+2"]
[Date "2023.02.07"]
[WhiteClock "0:00:43"]
[BlackClock "0:01:57"]

1. e3 {[%clk 0:02:59]}  Nf6 {[%clk 0:02:50]} 2. d4 {[%clk 0:02:58]}  g6 {[%clk 0:02:49]} 3. g3 {[%clk 0:02:50]}  Bg7 {[%clk 0:02:50]} 4. Bg2 {[%clk 0:02:50]}  d5 {[%clk 0:02:51]} 5. Ne2 {[%clk 0:02:50]}  O-O {[%clk 0:02:51]} 6. O-O {[%clk 0:02:50]}  b6 {[%clk 0:02:52]} 7. b3 {[%clk 0:02:50]}  a5 {[%clk 0:02:51]} 8. Bb2 {[%clk 0:02:47]}  Ba6 {[%clk 0:02:51]} 9. c4 {[%clk 0:02:46]}  c6 {[%clk 0:02:50]} 10. Nd2 {[%clk 0:02:42]}  Ra7 {[%clk 0:02:51]} 11. Rc1 {[%clk 0:02:39]}  Rd7 {[%clk 0:02:50]} 12. Qc2 {[%clk 0:02:24]}  Re8 {[%clk 0:02:46]} 13. Nf4 {[%clk 0:02:14]}  Bb7 {[%clk 0:02:42]} 14. Nd3 {[%clk 0:02:11]}  Na6 {[%clk 0:02:42]} 15. Ne5 {[%clk 0:02:10]}  Rc7 {[%clk 0:02:37]} 16. a3 {[%clk 0:02:04]}  c5 {[%clk 0:02:37]} 17. Ndf3 {[%clk 0:01:50]}  dxc4 {[%clk 0:02:36]} 18. Qxc4 {[%clk 0:01:36]}  cxd4 {[%clk 0:02:34]} 19. Qxf7+ {[%clk 0:01:32]}  Kh8 {[%clk 0:02:31]} 20. Nxd4 {[%clk 0:01:09]}  Bxg2 {[%clk 0:02:30]} 21. Ne6 {[%clk 0:01:00]}  Rg8 {[%clk 0:02:15]} 22. Nxd8 {[%clk 0:00:58]}  Rxd8 {[%clk 0:02:15]} 23. Kxg2 {[%clk 0:00:54]}  Rf8 {[%clk 0:02:11]} 24. Qe6 {[%clk 0:00:53]}  Nc5 {[%clk 0:02:11]} 25. Nf7+ {[%clk 0:00:50]}  Kg8 {[%clk 0:02:09]} 26. Nh6+ {[%clk 0:00:49]}  Kh8 {[%clk 0:02:09]} 27. Qh3 {[%clk 0:00:43]}  Rcc8 {[%clk 0:01:56]} 28. b4 {[%clk 0:00:43]}  axb4 {[%clk 0:01:57]} 29. axb4 {[%clk 0:00:44]}  Nd3 {[%clk 0:01:57]} 30. Rxc8 {[%clk 0:00:43]} 1-0


[Site "https://www.chess.com"]

[Event "Titled Tuesday Blitz February 07 Early 2023"]
[White "Skvortsov, Andrei"]
[Black "Alice, Mateus Felizardo Viageiro"]
[WhiteFideId "24108600"]
[BlackFideId "14800047"]
[WhiteElo "2313"]
[BlackElo "2202"]
[Result "1-0"]
[Round "01"]
[TimeControl "180+2"]
[Date "2023.02.07"]
[WhiteClock "0:00:23"]
[BlackClock "0:00:06"]

1. d4 {[%clk 0:02:52]}  Nf6 {[%clk 0:02:58]} 2. Nf3 {[%clk 0:02:48]}  e6 {[%clk 0:02:57]} 3. g3 {[%clk 0:02:47]}  b6 {[%clk 0:02:53]} 4. Bg2 {[%clk 0:02:45]}  Bb7 {[%clk 0:02:53]} 5. O-O {[%clk 0:02:44]}  Be7 {[%clk 0:02:52]} 6. c4 {[%clk 0:02:40]}  O-O {[%clk 0:02:49]} 7. Nc3 {[%clk 0:02:41]}  d5 {[%clk 0:02:49]} 8. Ne5 {[%clk 0:02:37]}  h6 {[%clk 0:02:47]} 9. cxd5 {[%clk 0:02:31]}  exd5 {[%clk 0:02:39]} 10. Rb1 {[%clk 0:02:24]}  a6 {[%clk 0:02:31]} 11. b3 {[%clk 0:02:21]}  Bd6 {[%clk 0:02:30]} 12. Nd3 {[%clk 0:02:19]}  Re8 {[%clk 0:02:27]} 13. Bf4 {[%clk 0:02:18]}  Ne4 {[%clk 0:02:14]} 14. Nxe4 {[%clk 0:02:13]}  dxe4 {[%clk 0:02:15]} 15. Bxd6 {[%clk 0:02:14]}  Qxd6 {[%clk 0:02:10]} 16. Ne5 {[%clk 0:02:12]}  Nd7 {[%clk 0:01:53]} 17. Nc4 {[%clk 0:02:07]}  Qe7 {[%clk 0:01:46]} 18. e3 {[%clk 0:02:05]}  Rad8 {[%clk 0:01:37]} 19. Rc1 {[%clk 0:02:04]}  Nf6 {[%clk 0:01:36]} 20. Qe2 {[%clk 0:01:59]}  Qb4 {[%clk 0:01:18]} 21. Rfd1 {[%clk 0:01:37]}  Qe7 {[%clk 0:00:38]} 22. Ne5 {[%clk 0:01:32]}  c5 {[%clk 0:00:36]} 23. Nc4 {[%clk 0:01:25]}  cxd4 {[%clk 0:00:22]} 24. Rxd4 {[%clk 0:01:22]}  b5 {[%clk 0:00:18]} 25. Na5 {[%clk 0:01:19]}  Rc8 {[%clk 0:00:16]} 26. Rcd1 {[%clk 0:01:17]}  Qc7 {[%clk 0:00:13]} 27. Nxb7 {[%clk 0:01:14]}  Qxb7 {[%clk 0:00:14]} 28. g4 {[%clk 0:01:15]}  Qb6 {[%clk 0:00:12]} 29. h3 {[%clk 0:01:14]}  Qc5 {[%clk 0:00:12]} 30. Qb2 {[%clk 0:01:10]}  Qc2 {[%clk 0:00:12]} 31. R4d2 {[%clk 0:01:07]}  Qc7 {[%clk 0:00:11]} 32. Bf1 {[%clk 0:00:56]}  Qc5 {[%clk 0:00:08]} 33. Qd4 {[%clk 0:00:55]}  Qg5 {[%clk 0:00:07]} 34. Bg2 {[%clk 0:00:48]}  h5 {[%clk 0:00:07]} 35. gxh5 {[%clk 0:00:46]}  Qxh5 {[%clk 0:00:07]} 36. Qd6 {[%clk 0:00:42]}  Rcd8 {[%clk 0:00:04]} 37. Qxa6 {[%clk 0:00:35]}  Rxd2 {[%clk 0:00:01]} 38. Rxd2 {[%clk 0:00:35]}  Qg6 {[%clk 0:00:02]} 39. Qxb5 {[%clk 0:00:29]}  Re7 {[%clk 0:00:02]} 40. Rd4 {[%clk 0:00:25]}  Re6 {[%clk 0:00:02]} 41. Qb8+ {[%clk 0:00:25]}  Kh7 {[%clk 0:00:02]} 42. Qg3 {[%clk 0:00:25]}  Qh6 {[%clk 0:00:02]} 43. Qf4 {[%clk 0:00:23]}  Qg6 {[%clk 0:00:02]} 44. h4 {[%clk 0:00:23]}  Nh5 {[%clk 0:00:02]} 45. Qg5 {[%clk 0:00:23]}  Qxg5 {[%clk 0:00:02]} 46. hxg5 {[%clk 0:00:24]}  f5 {[%clk 0:00:03]} 47. gxf6 {[%clk 0:00:24]}  Nxf6 {[%clk 0:00:03]} 48. b4 {[%clk 0:00:24]}  Kg6 {[%clk 0:00:04]} 49. a4 {[%clk 0:00:24]}  Kf5 {[%clk 0:00:05]} 50. b5 {[%clk 0:00:24]}  Re8 {[%clk 0:00:05]} 51. a5 {[%clk 0:00:24]}  Ke5 {[%clk 0:00:06]} 52. b6 {[%clk 0:00:23]}  Ra8 {[%clk 0:00:06]} 53. b7 {[%clk 0:00:23]} 1-0


[Site "https://www.chess.com"]